bitfinex-derivatives/quotes_SOLF0:USTF0_20260218
["timestamp","ask_amount","ask_price","bid_price","bid_amount"]
[1771426327223,3.87668,82.209,82.154,10.9598]
[1771426327421,3.87668,82.207,82.131,3.78678037]
[1771426327621,6.34854215,82.21,82.131,3.78678037]
[1771426327622,3.87668,82.205,82.131,3.78678037]
[1771426327823,10.9545,82.195,82.131,3.78678037]
[1771426328123,3.87668,82.224,82.151,3.78678037]
[1771426328323,3.87668,82.224,82.176,10.9569]
[1771426328522,3.87668,82.244,82.171,3.78678037]
[1771426328712,1.12485871,82.221,82.171,3.78678037]
[1771426328920,5.871e-05,82.221,82.191,3.78678037]
[1771426329824,5.871e-05,82.221,82.207,10.9527]
[1771426330013,5.871e-05,82.221,82.191,3.78678037]
[1771426330521,5.871e-05,82.221,82.171,3.78678037]
[1771426331621,10.9512,82.22,82.171,3.78678037]
[1771426331820,14.82788,82.22,82.152,3.78678037]
[1771426332728,10.9522,82.213,82.16,10.959]
[1771426333319,10.22522215,82.22,82.168,10.958]
[1771426333522,5.871e-05,82.221,82.152,3.78678037]
[1771426333722,5.871e-05,82.221,82.176,10.9569]
[1771426334131,5.871e-05,82.221,82.171,3.78678037]
[1771426334320,5.871e-05,82.221,82.207,10.9528]
[1771426334515,5.871e-05,82.221,82.191,3.78678037]
[1771426335625,5.871e-05,82.221,82.18,6.34854215]
[1771426335830,5.871e-05,82.221,82.169,3.67231026]
[1771426336122,5.871e-05,82.221,82.16,6.34854215]
[1771426336123,5.871e-05,82.221,82.204,10.9532]
[1771426337122,5.871e-05,82.221,82.181,3.67231026]
[1771426337330,5.871e-05,82.221,82.174,91.54]
[1771426337331,5.871e-05,82.221,82.201,3.67231026]
[1771426337520,444.74156213,82.311,82.221,3.67231026]
[1771426337727,3.92711815,82.299,82.221,3.67231026]
[1771426337923,3.92711815,82.288,82.204,3.67231026]
[1771426338430,3.92711815,82.27,82.225,10.9504]
[1771426338628,3.92711815,82.289,82.225,10.9504]
[1771426338831,3.92711815,82.26,82.215,10.9517]
[1771426339328,3.92711815,82.26,82.172,21.915]
[1771426339329,10.947,82.251,82.201,10.9536]
[1771426340532,10.946,82.259,82.208,10.9526]
[1771426340732,3.92711815,82.26,82.208,10.9526]
[1771426341128,10.9469,82.252,82.2,10.9538]
[1771426341530,6.34854215,82.27,82.201,3.67231026]
[1771426341729,3.92711815,82.283,82.201,3.67231026]
[1771426341930,3.92711815,82.279,82.21,6.33389137]
[1771426342239,10.9456,82.262,82.219,10.9512]
[1771426342832,10.9466,82.255,82.201,3.67231026]
[1771426343226,3.92711815,82.277,82.201,3.67231026]
[1771426343529,3.92711815,82.277,82.18,91.3]
[1771426343530,11.117918,82.307,82.211,3.67231026]
[1771426343734,14.00313565,82.299,82.231,3.67231026]
[1771426343935,10.9432,82.28,82.231,3.67231026]
[1771426344238,3.92711815,82.297,82.231,3.67231026]
[1771426344432,10.942,82.289,82.238,10.9486]
[1771426344629,3.92711815,82.297,82.238,10.9486]
[1771426344841,3.92711815,82.295,82.211,3.67231026]
[1771426345040,3.92711815,82.279,82.211,3.67231026]
[1771426345343,10.9458,82.26,82.217,10.9514]
[1771426345550,3.92711815,82.277,82.2,6.33389137]
[1771426345743,3.92711815,82.259,82.18,6.33389137]
[1771426345941,3.92711815,82.257,82.181,3.67231026]
[1771426346139,3.92711815,82.255,82.181,3.67231026]
[1771426346340,3.92711815,82.253,82.181,3.67231026]
[1771426346539,3.92711815,82.251,82.181,3.67231026]
[1771426346736,3.92711815,82.251,82.18,6.33389137]
[1771426346737,10.9502,82.228,82.182,10.9562]
[1771426347343,10.9487,82.238,82.192,10.9548]
[1771426347736,3.92711815,82.251,82.192,10.9548]
[1771426347737,3.92711815,82.251,82.192,3.67231026]
[1771426348439,10.9474,82.248,82.192,3.67231026]
[1771426349343,3.92711815,82.251,82.192,3.67231026]
[1771426349642,10.09890856,82.25,82.192,3.67231026]
[1771426349840,3.92711815,82.271,82.2,6.33389137]
[1771426350033,3.92711815,82.259,82.145,3.67231026]
[1771426350242,3.92711815,82.257,82.179,3.67231026]
[1771426350439,3.92711815,82.255,82.179,3.67231026]
[1771426350640,6.33389137,82.26,82.179,3.67231026]
[1771426350641,3.92711815,82.253,82.179,3.67231026]
[1771426350841,10.9478,82.246,82.193,10.9547]
[1771426351143,10.10374243,82.245,82.179,3.67231026]
[1771426351337,3.92711815,82.239,82.179,3.67231026]
[1771426351538,10.9497,82.231,82.18,10.9564]
[1771426352140,10.10507725,82.23,82.17,10.9577]
[1771426352340,10.10507725,82.229,82.17,14.63001026]
[1771426352544,14.0321954,82.228,82.17,3.67231026]
[1771426352840,10.9517,82.216,82.172,10.9574]
[1771426353043,3.92711815,82.219,82.151,3.67231026]
[1771426353245,3.92711815,82.217,82.153,10.96]
[1771426353435,14.03165104,82.216,82.151,3.67231026]
[1771426353639,3.92711815,82.216,82.151,3.67231026]
[1771426354039,6.33389137,82.2,82.131,3.67231026]
[1771426354234,3.92711815,82.198,82.131,3.67231026]
[1771426354439,3.92711815,82.196,82.131,3.67231026]
[1771426354742,3.92711815,82.194,82.131,3.67231026]
[1771426355042,3.92711815,82.192,82.131,3.67231026]
[1771426355344,3.92711815,82.19,82.131,3.67231026]
[1771426355545,10.10402687,82.189,82.131,3.67231026]
[1771426355744,10.9563,82.181,82.132,10.9628]
[1771426356142,6.33389137,82.2,82.133,3.67231026]
[1771426356449,3.92711815,82.223,82.168,14.63031026]
[1771426357144,3.92711815,82.219,82.131,3.67231026]
[1771426357441,3.92711815,82.199,82.131,3.67231026]
[1771426358252,3.92711815,82.219,82.14,3.67231026]
[1771426358445,10.09887186,82.218,82.14,3.67231026]
[1771426358645,10.9541,82.198,82.155,10.9597]
[1771426358846,3.92711815,82.216,82.155,10.9597]
[1771426359044,3.92711815,82.216,82.13,6.33389137]
[1771426359045,3.92711815,82.216,82.156,3.67231026]
[1771426359245,3.92711815,82.239,82.166,3.67231026]
[1771426359445,3.92711815,82.239,82.131,36.54]
[1771426359446,3.92711815,82.239,82.171,3.67231026]
[1771426359643,3.92711815,82.237,82.171,3.67231026]
[1771426359849,3.92711815,82.229,82.151,3.67231026]
[1771426360048,3.92711815,82.227,82.151,3.67231026]
[1771426360350,10.9541,82.198,82.153,10.96]
[1771426360553,3.92711815,82.225,82.153,10.96]
[1771426360850,6.33389137,82.23,82.153,10.96]
[1771426360851,3.92711815,82.223,82.153,10.96]
[1771426361054,3.92711815,82.223,82.151,3.67231026]
[1771426361055,10.9531,82.206,82.16,10.959]
[1771426361253,6.33389137,82.23,82.161,3.67231026]
[1771426361555,3.92711815,82.243,82.171,3.67231026]
[1771426362347,10.9476,82.247,82.196,3.67231026]
[1771426362753,3.92711815,82.261,82.196,3.67231026]
[1771426363054,10.9489,82.237,82.196,3.67231026]
[1771426363452,3.92711815,82.261,82.196,3.67231026]
[1771426363643,6.33389137,82.27,82.2,3.67231026]
[1771426364051,6.33389137,82.27,82.21,6.33389137]
[1771426364254,3.92711815,82.281,82.21,10.00620163]
[1771426364453,10.10546537,82.28,82.21,10.00620163]
[1771426364648,10.10546537,82.279,82.21,10.00620163]
[1771426364856,10.10546537,82.278,82.21,10.00620163]
[1771426365149,10.10546537,82.277,82.21,10.00620163]
[1771426365356,10.9454,82.263,82.213,10.952]
[1771426366358,11.15844198,82.308,82.163,21.9173]
[1771426366359,3.82047879,82.322,82.231,3.93312886]
[1771426366554,3.82047879,82.322,82.251,3.93312886]
[1771426366855,10.9388,82.313,82.251,3.93312886]
[1771426367656,10.9388,82.313,82.255,10.9464]
[1771426368247,10.9388,82.313,82.263,10.9453]
[1771426368554,10.9399,82.305,82.251,3.93312886]
[1771426368955,10.9399,82.305,82.254,10.9465]
[1771426369752,10.9399,82.305,82.216,21.9032]
[1771426369753,3.82047879,82.303,82.23,10.26702023]
[1771426370857,3.82047879,82.303,82.239,10.9485]
[1771426371255,3.82047879,82.325,82.251,3.93312886]
[1771426372149,87.73844198,82.349,82.251,3.93312886]
[1771426372150,3.82047879,82.319,82.251,3.93312886]
[1771426372551,3.82047879,82.317,82.231,3.93312886]
[1771426372852,3.82047879,82.317,82.23,6.33389137]
[1771426372853,3.82047879,82.299,82.23,6.33389137]
[1771426373051,3.82047879,82.297,82.23,6.33389137]
[1771426373249,10.08089774,82.296,82.212,3.93312886]
[1771426373555,3.82047879,82.279,82.212,3.93312886]
[1771426374362,10.9448,82.268,82.221,10.951]
[1771426374961,10.9458,82.261,82.213,10.952]
[1771426375163,3.82047879,82.279,82.213,10.952]
[1771426375757,10.9445,82.27,82.22,10.951]
[1771426376764,3.82047879,82.279,82.212,3.93312886]
[1771426377161,10.9454,82.263,82.213,10.952]
[1771426377367,3.82047879,82.279,82.212,3.93312886]
[1771426377760,3.82047879,82.279,82.193,3.76623765]
[1771426378268,3.82047879,82.279,82.21,10.10012902]
[1771426378480,3.82047879,82.279,82.211,3.76623765]
[1771426378770,10.945,82.267,82.211,3.76623765]
[1771426378960,3.82047879,82.279,82.211,3.76623765]
[1771426379357,6.33389137,82.3,82.211,3.76623765]
[1771426379566,10.9435,82.278,82.232,10.9495]
[1771426380068,10.9424,82.286,82.232,10.9495]
[1771426380263,3.89914311,82.298,82.2,6.33389137]
[1771426380264,3.89914311,82.298,82.239,3.76623765]
[1771426381070,6.33389137,82.31,82.239,3.76623765]
[1771426381463,3.89914311,82.309,82.239,3.76623765]
[1771426382461,10.9399,82.305,82.239,3.76623765]
[1771426382867,3.89914311,82.309,82.239,3.76623765]
[1771426383067,10.9415,82.293,82.239,3.76623765]
[1771426383373,3.89914311,82.309,82.239,3.76623765]
[1771426383676,3.89914311,82.309,82.204,21.9064]
[1771426383677,3.89914311,82.289,82.222,3.76623765]
[1771426383973,3.89914311,82.289,82.231,3.76623765]
[1771426384273,10.9424,82.286,82.238,10.9487]
[1771426384476,10.9424,82.286,82.231,3.76623765]
[1771426384965,3.89914311,82.289,82.236,10.949]
[1771426385170,3.89914311,82.289,82.213,3.76623765]
[1771426385371,3.89914311,82.269,82.2,6.33389137]
[1771426385571,10.9457,82.261,82.216,10.9516]
[1771426386475,10.9466,82.254,82.208,10.9526]
[1771426386666,10.9466,82.254,82.2,6.33389137]
[1771426386868,3.89914311,82.249,82.18,10.10012902]
[1771426387168,3.89914311,82.249,82.181,3.76623765]
[1771426388268,10.9476,82.247,82.207,10.9528]
[1771426388474,3.89914311,82.249,82.181,3.76623765]
[1771426388666,3.89914311,82.249,82.162,3.76623765]
[1771426389367,3.89914311,82.249,82.188,10.9554]
[1771426389568,3.89914311,82.249,82.162,3.76623765]
[1771426390072,10.9491,82.236,82.187,10.9554]
[1771426390369,3.89914311,82.249,82.187,10.9554]
[1771426390575,3.89914311,82.229,82.162,3.76623765]
[1771426390975,3.89914311,82.229,82.171,3.76623765]
[1771426391177,10.9511,82.221,82.175,10.9571]
[1771426391372,3.89914311,82.229,82.171,3.76623765]
[1771426391773,10.9501,82.228,82.188,10.9553]
[1771426391972,3.89914311,82.249,82.171,3.76623765]
[1771426392877,10.9491,82.236,82.171,3.76623765]
[1771426393274,10.9499,82.23,82.171,3.76623765]
[1771426393471,6.33389137,82.23,82.171,3.76623765]
[1771426393774,3.89914311,82.233,82.171,3.76623765]
[1771426394573,10.9494,82.233,82.183,10.956]
[1771426394775,3.89914311,82.239,82.171,3.76623765]
[1771426395174,10.9503,82.227,82.181,10.9562]
[1771426395469,3.72572802,82.256,82.182,3.72244358]
[1771426396379,3.72572802,82.239,82.182,3.72244358]
[1771426397076,3.72572802,82.239,82.19,10.9551]
[1771426397283,3.72572802,82.239,82.18,6.33389137]
[1771426397582,3.72572802,82.239,82.165,3.72244358]
[1771426397984,3.72572802,82.237,82.165,3.72244358]
[1771426398280,3.72572802,82.219,82.16,10.959]
[1771426398782,10.9529,82.207,82.16,10.959]
[1771426399378,3.72572802,82.219,82.148,3.72244358]
[1771426400580,3.72572802,82.239,82.172,10.9575]
[1771426400976,3.72572802,82.239,82.168,3.72244358]
[1771426401175,3.72572802,82.237,82.168,3.72244358]
[1771426401376,3.72572802,82.219,82.149,3.72244358]
[1771426401578,10.9522,82.212,82.149,3.72244358]
[1771426402082,3.72572802,82.219,82.176,10.9569]
[1771426403478,3.72572802,82.257,82.181,3.72244358]
[1771426403978,3.72572802,82.257,82.191,3.72244358]
[1771426404381,3.72572802,82.257,82.153,170.4898]
[1771426404382,3.72572802,82.276,82.211,3.72244358]
[1771426405174,6.3365109,82.29,82.21,6.3365109]
[1771426405175,6.3365109,82.29,82.235,10.9491]
[1771426405485,3.72572802,82.295,82.231,3.72244358]
[1771426405686,3.72572802,82.295,82.253,10.9467]
[1771426405882,6.3365109,82.31,82.253,10.9467]
[1771426406182,10.9415,82.292,82.242,10.9481]
[1771426406683,10.9415,82.292,82.231,3.72244358]
[1771426406684,3.72572802,82.292,82.231,3.72244358]
[1771426406882,10.9437,82.276,82.224,10.9505]
[1771426407179,3.72572802,82.289,82.212,3.72244358]
[1771426407380,3.72572802,82.271,82.212,3.72244358]
[1771426407585,3.72572802,82.269,82.21,6.3365109]
[1771426407984,3.72572802,82.269,82.211,10.9523]
[1771426408287,3.72572802,82.269,82.21,6.3365109]
[1771426408589,10.9435,82.277,82.226,10.9503]
[1771426409185,14.66922802,82.277,82.226,10.9503]
[1771426409485,3.72572802,82.277,82.233,10.9493]
[1771426409989,6.3365109,82.29,82.211,3.72244358]
[1771426410790,3.72572802,82.269,82.192,3.72244358]
[1771426411188,3.72572802,82.269,82.219,10.9512]
[1771426411986,10.9421,82.288,82.211,3.72244358]
[1771426412190,3.72572802,82.288,82.211,3.72244358]
[1771426412391,3.72572802,82.286,82.211,3.72244358]
[1771426412591,3.72572802,82.284,82.211,3.72244358]
[1771426412790,10.944,82.274,82.229,10.9499]
[1771426413085,10.944,82.274,82.211,3.72244358]
[1771426413281,3.72572802,82.281,82.211,3.72244358]
[1771426413686,3.72572802,82.281,82.184,36.54]
[1771426413687,6.3365109,82.29,82.231,3.72244358]
[1771426413888,3.72572802,82.299,82.231,3.72244358]
[1771426414183,10.07729617,82.298,82.231,3.72244358]
[1771426414382,3.72572802,82.299,82.231,3.72244358]
[1771426414590,10.9419,82.29,82.245,10.9477]
[1771426415495,10.9419,82.29,82.235,10.949]
[1771426415689,10.9407,82.298,82.231,3.72244358]
[1771426416287,10.941,82.296,82.249,10.9472]
[1771426417389,10.9397,82.306,82.257,10.9461]
[1771426417794,3.72572802,82.317,82.26,6.3365109]
[1771426418088,3.72572802,82.317,82.261,3.72244358]
[1771426418490,3.72572802,82.339,82.261,3.72244358]
[1771426418685,3.72572802,82.337,82.261,3.72244358]
[1771426418886,10.9373,82.325,82.282,10.9428]
[1771426419193,3.72572802,82.335,82.261,3.72244358]
[1771426419392,3.72572802,82.354,82.285,3.72244358]
[1771426419694,10.08845227,82.353,82.285,3.72244358]
[1771426419890,10.08845227,82.352,82.285,3.72244358]
[1771426420191,3.72572802,82.343,82.296,10.941]
[1771426421289,3.72572802,82.339,82.267,3.72244358]
[1771426422589,3.72572802,82.359,82.281,3.72244358]
[1771426422794,3.72572802,82.357,82.281,3.72244358]
[1771426422989,3.72572802,82.355,82.281,3.72244358]
[1771426423189,3.72572802,82.353,82.281,3.72244358]
[1771426423389,10.06992228,82.352,82.281,3.72244358]
[1771426423594,6.3365109,82.37,82.301,3.72244358]
[1771426423891,3.72572802,82.369,82.301,3.72244358]
[1771426424703,10.9315,82.368,82.319,10.9378]
[1771426425089,10.9315,82.368,82.301,3.72244358]
[1771426425797,10.9325,82.36,82.311,10.9389]
[1771426426199,3.72572802,82.369,82.301,3.72244358]
[1771426426393,10.9324,82.361,82.31,10.9391]
[1771426426592,3.72572802,82.369,82.301,3.72244358]
[1771426427498,3.67166615,82.388,82.321,4.0268899]
[1771426428193,444.78441553,82.389,82.341,4.0268899]
[1771426428900,3.67166615,82.409,82.341,4.0268899]
[1771426429694,11.13213074,82.442,82.267,182.4831]
[1771426429695,3.67166615,82.397,82.323,4.0268899]
[1771426430296,10.9282,82.393,82.34,6.3365109]
[1771426430795,3.67166615,82.397,82.341,4.0268899]
[1771426431002,76.52,82.409,82.341,4.0268899]
[1771426431202,6.3365109,82.41,82.341,4.0268899]
[1771426432008,3.67166615,82.417,82.341,4.0268899]
[1771426432300,3.67166615,82.417,82.36,6.3365109]
[1771426432503,21.77340295,82.432,82.385,10.9292]
[1771426433206,3.67166615,82.431,82.385,10.9292]
[1771426433604,10.00817705,82.41,82.343,4.0268899]
[1771426433809,3.67166615,82.409,82.343,4.0268899]
[1771426434005,3.67166615,82.405,82.356,10.933]
[1771426434212,3.67166615,82.405,82.34,6.3365109]
[1771426434213,3.67166615,82.405,82.34,5.5234008]
[1771426434403,3.67166615,82.405,82.33,6.3365109]
[1771426434600,10.9271,82.402,82.351,10.9337]
[1771426434804,3.67166615,82.401,82.33,6.3365109]
[1771426435000,3.67166615,82.418,82.35,6.3365109]
[1771426435199,3.67166615,82.418,82.37,10.9311]
[1771426435803,3.67166615,82.416,82.33,6.3365109]
[1771426435999,3.67166615,82.431,82.33,6.3365109]
[1771426436203,3.67166615,82.419,82.331,4.0268899]
[1771426436407,3.67166615,82.395,82.32,6.3365109]
[1771426436606,3.67166615,82.379,82.313,4.0268899]
[1771426436907,3.67166615,82.379,82.318,10.9381]
[1771426437208,3.67166615,82.379,82.295,4.0268899]
[1771426437903,3.8834817,82.359,82.295,4.0268899]
[1771426438511,3.8834817,82.359,82.276,4.03885047]
[1771426438906,10.2199926,82.35,82.276,4.03885047]
[1771426439508,10.2199926,82.35,82.304,10.9398]
[1771426439712,3.8834817,82.35,82.304,10.9398]
[1771426439914,3.8834817,82.371,82.311,4.03885047]
[1771426440412,10.9312,82.37,82.327,10.9368]
[1771426440613,3.8834817,82.371,82.327,10.9368]
[1771426441015,14.8145817,82.371,82.319,10.9379]
[1771426441314,3.8834817,82.369,82.291,4.03885047]
[1771426441714,3.8834817,82.369,82.318,10.938]
[1771426442011,3.8834817,82.369,82.291,4.03885047]
[1771426442311,3.8834817,82.345,82.291,4.03885047]
[1771426443013,10.9356,82.337,82.294,10.9412]
[1771426443409,10.9375,82.323,82.274,10.9439]
[1771426443620,10.9375,82.323,82.237,36.54]
[1771426443621,3.8834817,82.329,82.251,4.03885047]
[1771426443810,3.8834817,82.349,82.271,4.03885047]
[1771426444116,10.935,82.342,82.288,10.942]
[1771426444310,10.935,82.342,82.271,4.03885047]
[1771426444711,10.9359,82.335,82.271,4.03885047]
[1771426444911,3.8834817,82.349,82.271,4.03885047]
[1771426446008,3.8834817,82.329,82.271,4.03885047]
[1771426446210,10.9378,82.321,82.271,4.03885047]
[1771426446410,3.8834817,82.329,82.271,4.03885047]
[1771426447809,10.937,82.327,82.276,10.9437]
[1771426448116,3.8834817,82.329,82.276,10.9437]
[1771426448310,10.9379,82.32,82.276,10.9437]
[1771426448509,3.8834817,82.347,82.277,4.03885047]
[1771426448706,6.3365109,82.36,82.291,4.03885047]
[1771426449715,6.3365109,82.36,82.305,10.9398]
[1771426449716,10.933,82.357,82.305,10.9398]
[1771426450116,6.3365109,82.36,82.305,10.9398]
[1771426450507,6.3365109,82.36,82.291,4.03885047]
[1771426450713,3.8834817,82.365,82.313,10.9387]
[1771426451216,10.9323,82.362,82.313,10.9387]
[1771426451412,3.8834817,82.361,82.313,10.9387]
[1771426451808,3.8834817,82.361,82.29,6.3365109]
[1771426451809,3.8834817,82.361,82.32,10.9378]
[1771426452004,3.8834817,82.361,82.291,4.03885047]
[1771426452414,3.8834817,82.339,82.272,4.03885047]
[1771426452608,3.8834817,82.359,82.272,4.03885047]
[1771426453209,14.8161817,82.359,82.299,4.03885047]
[1771426453409,3.8834817,82.378,82.299,4.03885047]
[1771426453612,3.8834817,82.378,82.311,4.03885047]
[1771426453917,3.8834817,82.378,82.331,10.9363]
[1771426454314,10.9294,82.384,82.337,10.9355]
[1771426454715,3.8834817,82.398,82.329,4.03885047]
[1771426455012,3.8834817,82.398,82.342,10.9349]
[1771426455718,10.9301,82.379,82.333,10.936]
[1771426456019,3.93556928,82.396,82.329,4.03885047]
[1771426456218,6.3365109,82.4,82.329,4.03885047]
[1771426456219,3.93556928,82.394,82.329,4.03885047]
[1771426456519,14.86416928,82.39,82.341,10.935]
[1771426457121,10.9276,82.398,82.329,4.03885047]
[1771426457323,443.59906629,82.425,82.34,6.3365109]
[1771426457520,443.59906629,82.425,82.381,10.9297]
[1771426457720,443.59906629,82.425,82.361,3.91488309]
[1771426457928,3.93556928,82.423,82.35,6.3365109]
[1771426458123,10.9276,82.397,82.343,10.9347]
[1771426458629,10.9265,82.405,82.351,10.9336]
[1771426459027,3.93556928,82.409,82.351,3.91488309]
[1771426459229,3.93556928,82.409,82.367,10.9316]
[1771426459426,443.59906629,82.425,82.371,3.91488309]
[1771426460122,443.59906629,82.425,82.392,10.9282]
[1771426460328,3.93556928,82.456,82.371,3.91488309]
[1771426460724,3.93556928,82.456,82.391,3.91488309]
[1771426461127,3.93556928,82.438,82.37,10.25139399]
[1771426461324,3.93556928,82.438,82.371,3.91488309]
[1771426461528,2.96270295,82.432,82.391,3.91488309]
[1771426461735,2.95e-06,82.432,82.391,3.91488309]
[1771426462330,2.95e-06,82.432,82.41,10.9257]
[1771426462532,2.95e-06,82.432,82.391,3.91488309]
[1771426462835,2.95e-06,82.432,82.411,10.9257]
[1771426464041,2.95e-06,82.432,82.421,10.9243]
[1771426464334,2.95e-06,82.432,82.41,6.3365109]
[1771426464639,2.95e-06,82.432,82.412,10.9256]
[1771426464831,10.06819884,82.472,82.411,3.91488309]
[1771426465033,3.93556928,82.487,82.411,3.91488309]
[1771426465034,3.93556928,82.487,82.42,6.3365109]
[1771426465236,3.93556928,82.477,82.41,6.3365109]
[1771426465437,3.93556928,82.477,82.41,10.25139399]
[1771426465639,10.9172,82.476,82.419,10.9245]
[1771426465844,3.93556928,82.474,82.41,6.3365109]
[1771426466142,3.93556928,82.472,82.4,6.304629]
[1771426466343,3.93556928,82.467,82.4,6.304629]
[1771426467037,6.304629,82.48,82.42,6.304629]
[1771426467243,3.93556928,82.487,82.421,3.91488309]
[1771426467830,10.9159,82.486,82.428,10.9234]
[1771426468243,3.93556928,82.485,82.428,10.9234]
[1771426468438,6.304629,82.5,82.419,10.9246]
[1771426468439,3.93556928,82.483,82.419,10.9246]
[1771426468738,3.93556928,82.483,82.402,3.91488309]
[1771426468739,3.93556928,82.479,82.402,3.91488309]
[1771426469043,3.93556928,82.467,82.418,10.9248]
[1771426469243,3.93556928,82.467,82.402,3.91488309]
[1771426469444,3.93556928,82.467,82.4,6.304629]
[1771426469742,3.93556928,82.467,82.411,10.9256]
[1771426471148,3.93556928,82.467,82.421,10.9244]
[1771426471938,3.93556928,82.466,82.4,10.21951209]
[1771426472142,3.93556928,82.466,82.4,3.91488309]
[1771426472447,6.304629,82.48,82.4,3.91488309]
[1771426472448,3.93556928,82.464,82.4,3.91488309]
[1771426472643,3.93556928,82.464,82.39,6.304629]
[1771426472837,3.93556928,82.461,82.391,3.91488309]
[1771426473643,10.9194,82.46,82.41,10.9257]
[1771426474738,10.9199,82.455,82.41,10.9257]
[1771426475150,3.68592899,82.459,82.41,10.9257]
[1771426475448,3.68592899,82.456,82.391,3.91488309]
[1771426475646,3.68592899,82.456,82.374,3.82350613]
[1771426475950,3.68592899,82.439,82.374,3.82350613]
[1771426477146,76.42,82.438,82.374,3.82350613]
[1771426477452,80.10592899,82.439,82.374,3.82350613]
[1771426478054,10.9199,82.456,82.391,3.82350613]
[1771426478246,76.42,82.455,82.391,3.82350613]
[1771426478446,3.68592899,82.46,82.391,3.82350613]
[1771426479449,10.9195,82.459,82.391,3.82350613]
[1771426479748,3.68592899,82.46,82.391,3.82350613]
[1771426479948,10.9205,82.451,82.402,10.9269]
[1771426480451,3.68592899,82.459,82.418,10.9248]
[1771426481153,76.42,82.47,82.418,10.9248]
[1771426481451,80.10592899,82.47,82.418,10.9248]
[1771426481650,10.9188,82.464,82.418,10.9248]
[1771426482050,10.9188,82.464,82.41,17.230429]
[1771426482546,3.68592899,82.47,82.41,6.304629]
[1771426482753,3.68592899,82.47,82.411,3.82350613]
[1771426483056,3.68592899,82.488,82.411,3.82350613]
[1771426483552,3.68592899,82.486,82.411,3.82350613]
[1771426483753,3.68592899,82.484,82.411,3.82350613]
[1771426484456,6.304629,82.48,82.411,3.82350613]
[1771426484652,3.68592899,82.484,82.411,3.82350613]
[1771426484954,6.304629,82.5,82.432,3.85583512]
[1771426485257,4.00393948,82.502,82.432,3.85583512]
[1771426485557,4.00393948,82.502,82.456,10.9197]
[1771426485753,4.00393948,82.522,82.457,3.85583512]
[1771426486051,452.06486719,82.534,82.457,3.85583512]
[1771426486052,456.06880667,82.534,82.457,3.85583512]
[1771426486250,6.304629,82.55,82.471,3.85583512]
[1771426486457,4.00393948,82.548,82.471,3.85583512]
[1771426486658,21.8086,82.574,82.45,6.304629]
[1771426486659,4.00393948,82.566,82.491,3.85583512]
[1771426486856,439.76020597,82.609,82.453,169.8687]
[1771426486857,4.00393948,82.58,82.515,3.85583512]
[1771426487056,6.304629,82.59,82.515,3.85583512]
[1771426487259,4.00393948,82.603,82.553,10.9069]
[1771426487456,4.00393948,82.625,82.554,3.85583512]
[1771426487853,169.431,82.667,82.55,6.304629]
[1771426487854,2.10670969,82.664,82.576,3.85583512]
[1771426488060,4.00393948,82.665,82.591,3.85583512]
[1771426488258,4.00393948,82.644,82.571,3.85583512]
[1771426488456,4.00393948,82.639,82.571,3.85583512]
[1771426489659,4.00393948,82.639,82.57,6.304629]
[1771426489660,4.00393948,82.639,82.551,3.85583512]
[1771426489860,80.38393948,82.638,82.551,3.85583512]
[1771426490058,2.45306477,82.645,82.595,3.85583512]
[1771426490264,6.477e-05,82.645,82.595,3.85583512]
[1771426490762,6.477e-05,82.645,82.597,3.85583512]
[1771426490962,76.38,82.694,82.631,3.85583512]
[1771426491258,76.38,82.694,82.579,169.6092]
[1771426491259,4.00393948,82.688,82.61,3.85583512]
[1771426491452,4.00393948,82.669,82.59,3.85583512]
[1771426491657,4.00393948,82.665,82.595,10.9013]
[1771426491861,4.00393948,82.659,82.581,3.85583512]
[1771426492257,6.304629,82.67,82.601,3.85583512]
[1771426492454,10.30856848,82.67,82.601,3.85583512]
[1771426492655,4.00393948,82.669,82.601,3.85583512]
[1771426492957,4.00393948,82.669,82.55,6.304629]
[1771426492958,4.00393948,82.649,82.581,3.85583512]
[1771426493361,6.304629,82.63,82.562,10.9057]
[1771426493560,6.304629,82.63,82.563,3.85583512]
[1771426494359,4.00393948,82.629,82.563,3.85583512]
[1771426494666,4.00393948,82.626,82.563,3.85583512]
[1771426495562,4.00393948,82.648,82.571,3.85583512]
[1771426496066,4.00393948,82.635,82.571,3.85583512]
[1771426496366,4.00393948,82.635,82.55,6.304629]
[1771426496367,4.00393948,82.629,82.551,3.85583512]
[1771426496663,4.00393948,82.629,82.402,509.9241]
[1771426496664,4.00393948,82.609,82.526,3.85583512]
[1771426496959,4.00393948,82.609,82.531,3.85583512]
[1771426497160,4.00393948,82.609,82.533,3.85583512]
[1771426497957,76.3,82.63,82.5,6.304629]
[1771426497958,3.84350988,82.629,82.551,3.83302184]